bitfinex-derivatives/quotes_ETHF0:USTF0_20251211
["timestamp","ask_amount","ask_price","bid_price","bid_amount"]
[1765415171631,3.2078,3271.6,3271.0,6.73163]
[1765415171632,3.2078,3271.6,3271.5,6.3802]
[1765415171834,6.3784,3271.6,3271.4,0.15281]
[1765415172034,3.2078,3271.6,3271.5,4.989]
[1765415172236,3.2078,3271.6,3271.5,7.9705]
[1765415172437,3.2078,3271.6,3271.5,11.073]
[1765415172636,9.54608907,3271.6,3271.5,0.00341977]
[1765415174440,3.21098907,3271.6,3271.5,2.98491977]
[1765415174628,3.21098907,3271.6,3271.5,6.24021977]
[1765415174836,0.00318907,3271.6,3271.5,6.24021977]
[1765415175632,0.00318907,3271.6,3271.5,18.55821977]
[1765415176036,0.00318907,3271.6,3271.5,6.24021977]
[1765415176233,3.2078,3272.4,3272.3,2.9815]
[1765415176435,3.2078,3272.8,3272.6,0.15275]
[1765415176639,3.2078,3272.8,3272.7,2.9815]
[1765415176837,3.2078,3272.8,3272.7,6.084]
[1765415177037,3.2078,3273.3,3272.6,3.2078]
[1765415177238,3.21094182,3273.3,3273.2,6.23672]
[1765415177549,3.2078,3274.1,3274.0,2.9815]
[1765415177836,3.1706,3274.0,3273.9,0.15269]
[1765415178042,6.3351,3274.0,3273.9,0.15269]
[1765415178237,3.2078,3274.1,3274.0,2.9815]
[1765415178542,6.3351,3273.8,3273.7,0.0045828]
[1765415178735,6.3351,3273.8,3273.7,0.00723479]
[1765415178940,12.3351,3273.8,3272.7,3.577]
[1765415179137,3.2078,3273.1,3272.4,3.2078]
[1765415179337,6.3351,3272.5,3272.4,3.2078]
[1765415179735,3.2078,3273.1,3272.4,3.2078]
[1765415179931,3.2123592,3273.1,3272.4,3.21457518]
[1765415180140,6.3351,3272.5,3272.4,3.21457518]
[1765415180439,0.0045592,3273.1,3272.5,1.8818]
[1765415180642,0.0045592,3273.1,3273.0,6.084]
[1765415180832,0.0045592,3273.1,3273.0,6.23673]
[1765415181040,3.2078,3274.3,3274.0,2.9815]
[1765415181333,3.2078,3274.3,3274.0,6.084]
[1765415181944,3.2078,3274.3,3274.0,6.23669]
[1765415182738,3.46157824,3275.3,3274.0,6.23669]
[1765415182945,3.2078,3274.7,3274.0,6.23669]
[1765415183243,0.90795668,3274.6,3274.0,6.23669]
[1765415183837,0.90795668,3274.6,3274.0,18.55669]
[1765415184239,0.90795668,3274.5,3274.0,6.23669]
[1765415184434,0.90795668,3274.4,3274.0,18.55369]
[1765415184639,3.2078,3274.7,3274.0,18.55369]
[1765415184840,0.90719026,3274.6,3274.0,18.55369]
[1765415185041,0.90719026,3274.5,3274.0,18.55369]
[1765415185245,0.90719026,3274.4,3274.0,6.23669]
[1765415185445,0.90719026,3274.3,3274.0,18.55169]
[1765415185645,3.2078,3274.7,3274.0,0.15269]
[1765415185845,0.90693578,3274.6,3274.0,6.23669]
[1765415186042,0.90693578,3274.5,3274.0,6.23669]
[1765415186240,3.2078,3274.7,3274.0,6.23669]
[1765415186442,0.90713371,3274.6,3274.0,6.23669]
[1765415186641,3.2078,3274.7,3274.6,3.13416]
[1765415186845,3.2078,3274.7,3274.6,8.11846]
[1765415187051,3.2078,3275.7,3275.4,0.15262]
[1765415187648,6.3351,3275.1,3275.0,3.2078]
[1765415187849,6.3351,3275.1,3275.0,3.21173821]
[1765415188542,6.3351,3275.1,3274.3,0.0045828]
[1765415188543,5.8915,3274.4,3274.3,0.0045828]
[1765415189543,5.8915,3274.4,3274.3,0.00843802]
[1765415189854,1.5665,3274.8,3274.4,0.15267]
[1765415190046,5.8915,3274.5,3274.4,0.15267]
[1765415190355,1.57621724,3274.9,3274.4,0.15267]
[1765415190849,1.57621724,3274.9,3274.4,3.17917]
[1765415191050,1.57621724,3274.9,3274.4,0.15267]
[1765415191051,2.9053,3274.5,3274.4,0.15267]
[1765415191353,1.57621724,3274.8,3274.4,0.15267]
[1765415191651,1.57621724,3274.7,3274.4,0.15267]
[1765415191852,5.32732387,3275.1,3274.6,3.0265]
[1765415191853,1.57621724,3274.8,3274.6,3.0265]
[1765415192052,1.57621724,3274.8,3274.7,3.0265]
[1765415192251,1.58118654,3274.8,3274.7,6.0045]
[1765415192454,4.78898654,3275.1,3274.9,6.0045]
[1765415192649,3.2078,3275.1,3275.0,3.0265]
[1765415193055,6.1131,3275.1,3274.8,0.15265]
[1765415193654,3.2078,3275.1,3275.0,3.0265]
[1765415193951,6.1131,3275.1,3275.0,3.0265]
[1765415194155,6.1131,3275.1,3274.9,0.15264]
[1765415194447,1.58118654,3275.5,3275.4,3.0265]
[1765415194649,1.58118654,3275.6,3275.5,6.0045]
[1765415194955,5.8915,3275.3,3275.2,3.36043]
[1765415195254,2.9053,3275.3,3275.2,3.36043]
[1765415195456,5.8915,3275.3,3275.2,3.36043]
[1765415195654,5.8915,3275.3,3275.2,3.2078]
[1765415195849,1.767,3275.4,3274.6,3.2078]
[1765415196055,5.8915,3274.7,3274.6,3.2078]
[1765415196252,1.58118654,3275.1,3274.6,6.38696]
[1765415196452,1.58118654,3275.1,3274.7,0.15265]
[1765415196761,5.8915,3275.1,3275.0,3.2078]
[1765415197053,2.11426433,3275.3,3275.2,6.0045]
[1765415197249,2.11559817,3275.3,3275.2,6.15713]
[1765415197454,2.11559817,3275.6,3275.5,6.15712]
[1765415197648,0.00246505,3275.7,3275.6,3.17911]
[1765415198345,0.00246505,3275.7,3275.6,6.15711]
[1765415198549,0.93780195,3275.7,3275.6,6.15711]
[1765415199156,1.58777155,3276.1,3276.0,8.06099]
[1765415199454,2.11559817,3276.5,3276.4,6.0045]
[1765415199455,1.58777155,3276.5,3276.4,6.0045]
[1765415199650,1.58777155,3276.6,3276.5,6.15707]
[1765415200054,1.59167343,3276.6,3276.5,6.15707]
[1765415200551,7.48317343,3276.6,3276.5,0.15257]
[1765415200856,4.49697343,3276.6,3276.5,0.15257]
[1765415201155,1.59167343,3276.6,3276.5,0.15257]
[1765415201453,1.59167343,3276.6,3276.4,3.2078]
[1765415201454,2.9053,3276.3,3276.1,0.0045828]
[1765415201661,4.49315793,3276.3,3276.1,0.1571728]
[1765415201864,7.47935793,3276.2,3276.1,0.0045828]
[1765415202060,5.8915,3276.2,3276.1,0.0045828]
[1765415202261,5.8915,3275.7,3275.6,3.2078]
[1765415203160,5.8915,3275.6,3275.5,0.15262]
[1765415203361,5.8915,3275.6,3275.3,0.0045828]
[1765415203562,8.01055835,3275.4,3275.3,0.0045828]
[1765415203759,5.8915,3274.9,3274.8,3.2078]
[1765415203963,8.00986311,3274.9,3274.8,3.2078]
[1765415204168,5.8915,3274.6,3274.5,10.731]
[1765415204365,2.1205817,3274.7,3274.5,10.731]
[1765415205172,2.1205817,3274.6,3274.5,10.731]
[1765415205370,8.0120817,3274.6,3274.5,10.731]
[1765415206274,5.8915,3274.6,3274.5,10.731]
[1765415206572,2.12521488,3274.6,3274.5,13.7575]
[1765415207165,2.64803237,3274.9,3274.5,16.7355]
[1765415207468,2.64803237,3274.8,3274.4,3.2078]
[1765415207769,2.64803237,3275.0,3274.9,6.0045]
[1765415207971,2.64803237,3275.1,3274.9,9.2123]
[1765415208170,2.9053,3275.0,3274.7,0.15265]
[1765415208367,5.55333237,3275.0,3274.7,0.15265]
[1765415208768,5.8915,3274.8,3274.7,0.15265]
[1765415209769,7.642,3274.6,3274.5,3.2078]
[1765415209968,7.642,3274.6,3274.0,3.2078]
[1765415209969,5.8915,3274.1,3274.0,3.2078]
[1765415210270,5.8915,3273.4,3273.3,0.15272]
[1765415210572,5.03420515,3273.4,3273.3,0.15272]
[1765415210868,5.03746301,3273.4,3273.3,0.1550859]
[1765415211068,3.05203309,3273.4,3273.3,0.1550859]
[1765415212271,6.81462794,3273.4,3273.3,0.1550859]
[1765415212868,6.81462794,3273.4,3273.3,6.1595859]
[1765415212869,0.92312794,3273.4,3273.3,6.1595859]
[1765415213274,0.92312794,3273.4,3273.3,8.13004681]
[1765415213666,0.92312794,3273.4,3273.3,6.1595859]
[1765415214574,0.0045828,3273.7,3273.6,6.1572]
[1765415214775,1e-08,3273.7,3273.6,11.33546091]
[1765415215075,1e-08,3273.7,3273.6,23.63046091]
[1765415215476,0.0029892,3273.7,3273.6,23.63046091]
[1765415215674,0.0029892,3273.7,3273.6,9.365]
[1765415215872,5.8944892,3273.7,3273.6,3.3605]
[1765415216066,5.8915,3273.4,3273.3,0.0023659]
[1765415216874,7.48839735,3273.4,3273.3,0.0023659]
[1765415217075,4.50219735,3273.4,3273.3,0.0023659]
[1765415217278,4.80768655,3273.7,3273.3,0.0023659]
[1765415217478,6.0326,3273.4,3273.3,0.0023659]
[1765415217875,4.80768655,3273.7,3273.3,3.1561659]
[1765415218180,3.2107892,3273.7,3273.3,3.1561659]
[1765415218380,0.0029892,3273.7,3273.6,3.209]
[1765415218679,0.0029892,3273.7,3273.6,6.2559]
[1765415219079,0.0029892,3273.7,3273.6,3.209]
[1765415219576,0.0029892,3273.7,3273.6,6.2559]
[1765415220375,2.9982892,3273.7,3273.6,0.1527]
[1765415220782,0.0029892,3273.7,3273.6,6.2559]
[1765415221383,3.2078,3274.5,3274.4,6.25587]
[1765415221582,4.80469735,3275.8,3274.9,0.15264]
[1765415221875,6.0918,3275.0,3274.9,0.15264]
[1765415222277,2.99789765,3275.0,3274.9,0.15264]
[1765415222982,6.09439765,3275.0,3274.9,0.15264]
[1765415225882,6.0918,3274.3,3274.2,3.2078]
[1765415226582,7.8612,3274.2,3274.1,0.15268]
[1765415229383,6.0918,3273.9,3273.8,0.0045828]
[1765415229882,9.2996,3273.9,3273.8,0.0045828]
[1765415230080,9.2996,3273.9,3273.8,1e-08]
[1765415230275,6.2031,3273.9,3273.8,1e-08]
[1765415230476,9.2996,3273.9,3273.8,1e-08]
[1765415232277,6.2031,3273.9,3273.8,3.20900001]
[1765415232476,6.2031,3273.9,3273.8,0.15270001]
[1765415232988,9.1227,3273.9,3273.8,0.15270001]
[1765415233388,3.2078,3273.9,3273.8,2.93220001]
[1765415233784,3.2078,3274.4,3274.1,0.15268]
[1765415234387,2.8447,3274.2,3274.1,0.15268]
[1765415234587,3.2078,3274.4,3274.1,2.93218]
[1765415234890,5.7643,3274.2,3274.1,0.15268]
[1765415235192,7.5022,3274.2,3274.1,0.15268]
[1765415235585,3.2078,3274.4,3274.3,0.15267]
[1765415235788,1.7062,3274.8,3273.8,1e-08]
[1765415235789,2.8447,3274.9,3274.8,0.15265]
[1765415235988,6.0525,3274.9,3274.8,2.93215]
[1765415236285,8.9721,3274.9,3274.8,0.15265]
[1765415237488,1.7379,3274.8,3274.0,0.15268]
[1765415237693,2.8447,3274.1,3274.0,0.15268]
[1765415238087,2.8447,3274.1,3273.8,1e-08]
[1765415238088,3.2078,3274.1,3273.8,1e-08]
[1765415240201,3.2078,3274.1,3273.3,3.2101659]
[1765415240202,5.7643,3273.4,3273.3,3.2101659]
[1765415240695,5.7643,3273.4,3273.3,0.0023659]
[1765415242898,5.7643,3272.5,3272.4,0.15276]
[1765415243096,3.2078,3272.8,3272.4,2.93226]
[1765415243397,3.2078,3273.4,3272.9,0.15273]
[1765415243594,6.0525,3273.0,3272.9,0.15273]
[1765415243794,6.05626871,3273.0,3272.9,0.15602841]
[1765415244492,8.97586871,3273.0,3272.9,0.15602841]
[1765415245300,5.76806871,3273.0,3272.9,0.15602841]
[1765415246704,7.41806871,3273.0,3272.9,0.15602841]
[1765415248402,5.3622,3272.7,3272.6,0.0045828]
[1765415248602,8.57,3272.7,3272.6,0.0045828]
[1765415249605,8.57,3272.7,3272.6,0.00672956]
[1765415250403,5.3622,3272.3,3272.2,0.15277]
[1765415250607,8.57,3272.3,3272.2,0.15277]
[1765415250902,8.57,3272.3,3271.6,3.2078]
[1765415250903,5.3622,3271.7,3271.6,3.2078]
[1765415251497,5.3622,3271.7,3271.6,3.20999369]
[1765415251704,5.3622,3271.7,3271.6,3.36279369]
[1765415253007,2.6539,3271.7,3271.6,3.36279369]
[1765415253507,5.3622,3271.7,3271.6,3.36279369]
[1765415254299,2.6539,3271.7,3271.6,6.02269369]
[1765415254700,8.57,3271.7,3271.6,0.15499369]
[1765415255102,5.8617,3271.7,3271.6,2.81489369]
[1765415255298,3.2078,3271.7,3271.6,5.49639369]
[1765415255605,8.57,3271.7,3271.6,0.15499369]
[1765415258212,8.57,3271.7,3271.6,0.00219369]
[1765415258519,5.3622,3271.0,3270.9,0.15283]
[1765415259515,3.2123828,3271.3,3271.2,6.9327]
[1765415259813,0.0045828,3271.3,3271.2,10.29332]
[1765415260608,0.0045828,3271.3,3271.2,7.08552]
[1765415261708,0.0045828,3271.3,3271.2,10.29332]
[1765415261914,3.2078,3272.2,3271.7,0.15279]
[1765415262309,1.80650871,3273.0,3272.0,0.15278]
[1765415262310,3.2078,3272.6,3272.0,0.15278]
[1765415262503,3.2078,3272.6,3272.2,0.15277]
[1765415263409,3.2078,3272.6,3272.3,0.15277]
[1765415263809,2.6539,3272.4,3272.3,0.15277]
[1765415264005,3.2078,3272.6,3272.5,5.49416]
[1765415264205,0.0045828,3272.7,3272.6,5.49415]
[1765415264807,8.5745828,3272.7,3272.6,0.15275]
[1765415265209,5.8662828,3272.7,3272.6,2.81265]
[1765415265410,8.5745828,3272.7,3272.6,0.15275]
[1765415266013,5.8662828,3272.7,3272.6,2.81265]
[1765415266214,3.2123828,3272.7,3272.6,5.49415]
[1765415266410,3.2123828,3272.7,3272.6,2.81265]
[1765415266611,8.5745828,3272.7,3272.6,0.15275]
[1765415266808,5.3622,3272.2,3272.1,0.00458279]
[1765415267013,8.57,3272.2,3272.1,0.00458279]
[1765415267411,8.57,3272.2,3271.1,0.15282]
[1765415267412,1.6558,3271.8,3271.1,0.15282]
[1765415267614,3.2078,3271.2,3271.1,2.81272]
[1765415267918,3.2078,3271.7,3271.2,0.15281]
[1765415268124,3.2078,3271.7,3271.6,5.3414]
[1765415268414,3.2078,3271.7,3271.6,5.4942]
[1765415268617,8.57,3271.7,3271.6,0.1528]
[1765415269417,3.2078,3271.7,3271.6,2.8127]
[1765415270322,5.8617,3271.7,3271.6,0.1528]
[1765415271522,5.8617,3271.7,3271.6,2.8127]
[1765415271921,3.2078,3271.7,3271.6,2.8127]
[1765415272325,3.2078,3271.7,3271.6,5.4942]
[1765415272828,3.2078,3272.1,3272.0,5.49418]
[1765415274423,5.8617,3272.1,3272.0,2.81268]
[1765415275016,3.2078,3272.1,3272.0,5.49418]
[1765415275526,8.57,3272.1,3270.9,0.00273332]
[1765415275731,3.2078,3271.2,3271.1,5.3414]
[1765415276528,3.2078,3271.2,3271.1,5.49422]
[1765415278528,5.1557,3271.4,3271.3,0.15281]
[1765415279628,4.9542,3271.0,3270.9,0.00273332]
[1765415279827,3.2078,3271.1,3271.0,0.15283]
[1765415280130,8.162,3271.1,3271.0,0.15283]
[1765415280928,5.6602,3271.5,3271.4,0.1528]
[1765415281132,4.9542,3271.0,3270.9,0.00273332]
[1765415281332,8.162,3271.0,3270.9,0.00273332]
[1765415282035,8.162,3271.0,3270.9,0.15556332]
[1765415282427,2.4524,3271.0,3270.9,2.65816332]
[1765415282626,2.4524,3271.0,3270.9,5.16166332]
[1765415282828,2.4524,3271.2,3271.1,0.15282]
[1765415283530,2.4524,3271.2,3271.1,2.65542]
[1765415283735,4.9542,3271.2,3271.1,2.65542]
[1765415283935,2.4524,3271.2,3271.1,2.65542]
[1765415284334,3.2078,3271.4,3271.3,5.15891]
[1765415285137,4.9542,3271.2,3271.1,0.15282]
[1765415285645,6.4568,3271.2,3271.1,0.15282]
[1765415287240,2.4524,3271.2,3271.1,2.65542]
[1765415287735,4.9542,3271.2,3271.1,0.15282]
[1765415288136,6.4568,3271.2,3271.1,0.15282]
[1765415289636,4.9542,3271.0,3270.9,0.00273332]
[1765415289833,8.162,3271.0,3270.9,0.00273332]
[1765415293149,8.162,3271.0,3270.0,0.15287]
[1765415293150,4.9317,3270.1,3270.0,0.15287]
[1765415293349,8.1395,3270.1,3270.0,0.15287]
[1765415294042,3.2101432,3270.1,3270.0,6.29225589]
[1765415294743,8.1418432,3270.1,3270.0,2.49665589]
[1765415294943,5.6609432,3270.1,3270.0,4.86995589]
[1765415295849,3.2101432,3270.1,3270.0,6.29225589]
[1765415297549,0.0023432,3270.1,3270.0,6.29225589]
[1765415299350,4.9340432,3270.1,3270.0,0.15665589]
[1765415299653,0.0023432,3270.1,3270.0,6.29225589]
[1765415301650,8.1395,3271.1,3271.0,0.15282]
[1765415301953,3.2078,3271.6,3271.5,4.8661]
[1765415302150,8.1395,3271.6,3271.5,0.1528]
[1765415302657,8.14265491,3271.6,3271.5,0.1528]
[1765415303151,8.14265491,3271.6,3271.2,0.0045828]
[1765415303152,4.9317,3271.3,3271.2,0.0045828]
[1765415303563,4.9317,3270.8,3270.7,0.15284]
[1765415303857,8.1395,3270.8,3270.7,0.15284]
[1765415304258,4.9317,3270.2,3270.1,12.278]
[1765415304454,2.4508,3270.2,3270.1,14.618]
[1765415304844,2.4508,3270.2,3270.1,17.14417]
[1765415305051,3.2078,3270.3,3270.2,4.7133]
[1765415305248,5.6586,3270.3,3270.2,4.7133]
[1765415305948,5.6586,3270.3,3270.2,2.34]
[1765415307258,3.2078,3270.3,3270.2,4.7133]
[1765415307460,8.1395,3270.3,3270.2,2.34]
[1765415307656,4.9317,3270.2,3270.1,14.77087]
[1765415307857,2.4508,3270.2,3270.1,17.14417]
[1765415309664,5.4856,3270.3,3270.2,4.6333]
[1765415309962,3.2078,3270.3,3270.2,4.78616]
[1765415311357,7.865,3270.3,3270.2,4.78616]
[1765415311564,3.2078,3270.3,3270.2,4.78616]
[1765415313862,3.2078,3270.7,3270.2,4.78616]
[1765415314071,7.865,3270.7,3270.6,2.2222]
[1765415314366,2.2778,3270.5,3270.4,4.78615]
[1765415314567,7.865,3270.7,3270.4,0.15285]
[1765415314758,4.6572,3270.5,3270.4,0.15285]
[1765415317256,5.8123,3270.5,3270.4,0.15285]
[1765415317462,4.6572,3270.1,3270.0,0.00378589]
[1765415317661,7.865,3270.1,3270.0,4.78995589]
[1765415317869,5.4856,3270.1,3270.0,4.78995589]
[1765415318061,7.865,3270.1,3270.0,4.78995589]
[1765415318363,3.2078,3270.1,3270.0,6.13215589]
[1765415318563,5.4856,3270.7,3270.6,4.78614]
[1765415318765,3.2078,3270.7,3270.6,4.78614]
[1765415319165,7.865,3271.1,3271.0,2.2222]
[1765415319364,4.6572,3271.5,3271.4,2.2222]
[1765415320268,5.9743,3271.0,3270.9,0.15283]
[1765415320475,9.1821,3271.0,3270.9,0.15283]
[1765415320773,9.1821,3271.0,3270.3,0.15286]
[1765415320973,5.4856,3270.6,3270.5,4.6333]
[1765415321269,3.2078,3270.6,3270.5,5.9755]
[1765415321870,5.4856,3270.6,3270.5,5.9755]
[1765415322474,4.6572,3270.1,3270.0,2.22598589]
[1765415322777,7.865,3270.1,3270.0,0.00378589]
[1765415322971,4.6572,3270.1,3270.0,4.63708589]
[1765415323178,2.2778,3270.1,3270.0,4.63708589]
[1765415323677,4.6572,3270.1,3270.0,4.63708589]
[1765415323878,4.6572,3270.1,3270.0,0.00378589]
[1765415324773,4.6572,3269.5,3269.4,3.2078]
[1765415324974,0.0045828,3269.8,3269.4,7.8411]
[1765415325271,4.6617828,3269.8,3269.7,2.2222]
[1765415325475,4.6617828,3269.8,3269.4,3.2078]
[1765415325683,2.2778,3269.5,3269.4,7.8443733]
[1765415326175,5.4856,3269.7,3269.6,2.2222]
[1765415326380,7.865,3269.7,3269.6,2.2222]
[1765415326581,2.2778,3269.5,3269.4,4.7894733]
[1765415327079,3.2078,3269.7,3269.6,4.6333]
[1765415327284,3.2078,3269.7,3269.6,4.78619]
[1765415327688,4.6572,3269.5,3269.4,0.0032733]
[1765415327895,4.6572,3269.5,3269.4,2.2254733]
[1765415328187,4.6572,3269.5,3269.4,0.0032733]
[1765415328578,4.6572,3269.5,3269.4,2.2254733]
[1765415328780,5.9516,3269.5,3269.4,0.0032733]
[1765415329977,2.2778,3269.5,3269.4,4.6365733]
[1765415330382,7.865,3269.7,3269.6,2.2222]
[1765415330884,2.2778,3269.5,3269.4,4.7894733]
[1765415331184,5.8841,3269.5,3269.4,0.1561733]
[1765415331389,5.8841,3269.5,3269.4,0.0032733]
[1765415331685,1.2269,3269.5,3269.0,1.3422]
[1765415331881,4.6572,3269.5,3269.4,2.2222]
[1765415332386,4.6572,3269.5,3269.0,1.3422]
[1765415332587,2.2778,3269.3,3269.2,4.78621]
[1765415332783,0.00323707,3269.3,3269.2,4.78621]
[1765415335487,3.2078,3269.7,3269.6,4.78619]
[1765415335697,0.0045828,3269.8,3269.7,4.78619]
[1765415336584,0.00683753,3269.8,3269.7,4.78619]
[1765415338090,3.2078,3270.3,3270.2,4.2007]
[1765415338698,3.2078,3271.1,3270.6,4.31904]
[1765415339093,3.21170177,3271.1,3270.6,4.31904]
[1765415339895,2.0976,3270.7,3270.6,4.31904]
[1765415340092,4.2399,3271.0,3270.9,1.9914]
[1765415340295,3.21170177,3271.1,3271.0,5.58993]
[1765415340896,0.00390177,3271.1,3271.0,10.77184995]
[1765415341192,7.4477,3271.6,3271.5,0.1528]
[1765415342190,7.45070754,3271.6,3271.5,0.15509602]
[1765415342793,4.2399,3270.9,3270.8,0.15283]
[1765415343698,3.2078,3271.4,3270.9,0.15283]
[1765415343899,3.2078,3271.4,3271.0,1.2709]
[1765415344201,2.0976,3271.0,3270.9,4.31903]
[1765415344593,4.2399,3270.9,3270.8,0.00375191]
[1765415344900,7.4477,3270.9,3270.8,0.00375191]
[1765415345593,13.4477,3270.9,3270.8,0.00375191]
[1765415346594,7.4477,3270.9,3270.8,0.00375191]
[1765415349294,13.4477,3270.9,3270.5,0.0045828]
[1765415349495,4.2399,3270.6,3270.5,0.0045828]
[1765415350389,4.2399,3270.6,3270.5,0.00728007]
[1765415352901,4.2399,3270.6,3270.5,1.99868007]
[1765415353295,2.0976,3270.6,3270.5,4.32633007]
[1765415353490,3.2078,3270.9,3270.8,4.1662]
[1765415353691,3.2078,3270.9,3270.8,4.31904]
[1765415353893,3.2078,3271.3,3271.2,4.31901]
[1765415354903,7.3607,3271.3,3271.2,0.15281]
[1765415355102,7.3607,3271.3,3270.5,1.27818007]
[1765415355302,7.3607,3271.3,3270.5,1.43103007]
[1765415355690,3.94,3270.6,3270.5,2.16973007]
[1765415355898,3.94,3270.6,3270.5,0.00728007]
[1765415356098,3.94,3269.6,3269.5,3.2078]
[1765415357197,3.2123828,3269.9,3269.5,7.17636259]
[1765415357391,1.8847,3269.6,3269.5,7.17636259]
[1765415357897,3.94,3269.6,3269.5,0.00286259]
[1765415359301,3.94,3268.7,3268.6,3.2078]
[1765415359603,1.8847,3268.3,3268.2,2.0096]
[1765415359900,1.8847,3267.8,3267.7,2.16258]
[1765415360098,3.2078,3268.3,3267.7,2.16258]
[1765415360305,3.21501111,3268.3,3268.2,2.0096]
[1765415360607,3.21501111,3268.3,3268.2,3.9657]
[1765415360802,5.09971111,3268.3,3268.2,2.0096]
[1765415361006,7.15501111,3268.3,3267.7,0.15516302]
[1765415363206,5.09971111,3268.3,3268.2,2.0096]
[1765415363402,3.21501111,3268.3,3268.2,5.1089]
[1765415363597,3.94,3268.0,3267.9,0.15297]
[1765415363798,3.94,3267.8,3267.7,0.00218302]
[1765415364003,7.1478,3267.8,3267.7,0.00218302]
[1765415365301,7.1478,3267.8,3266.7,7.696]
[1765415365501,3.94,3266.8,3266.7,7.696]
[1765415365706,3.2078,3266.9,3266.8,4.11872]
[1765415366500,3.2078,3266.9,3266.8,4.12267708]
[1765415366707,3.2078,3267.5,3266.8,4.12267708]
[1765415366901,3.2078,3267.5,3266.9,0.15302]
[1765415368910,3.8563,3267.0,3266.9,0.15302]
[1765415369108,1.8771,3267.0,3266.9,2.02822]
[1765415370010,3.2078,3267.1,3267.0,4.95621]
[1765415370415,3.2078,3267.1,3267.0,0.15301]
[1765415370416,7.0641,3267.1,3267.0,0.15301]
[1765415371318,5.0849,3267.1,3267.0,2.02821]
[1765415371519,5.0849,3267.1,3267.0,3.87921]
[1765415371816,1.111,3267.5,3267.4,3.7262]
[1765415371817,3.2078,3267.5,3267.4,3.7262]
[1765415372006,7.0641,3267.5,3267.4,1.8752]
[1765415372208,3.8563,3266.9,3266.8,0.00395708]
[1765415372806,3.8563,3266.9,3266.8,1.87915708]
[1765415373010,1.8771,3266.9,3266.8,3.73015708]
[1765415373210,3.8563,3266.9,3266.8,0.00395708]
[1765415373817,3.2078,3267.1,3267.0,4.95621]
[1765415375112,5.0849,3267.1,3267.0,3.87921]
[1765415375411,7.0641,3267.1,3267.0,0.15301]
[1765415375918,8.16580634,3267.1,3267.0,0.15301]
[1765415376220,8.16579655,3267.1,3267.0,0.15301]
[1765415377807,4.30949655,3267.1,3267.0,3.87921]
[1765415378011,3.2078,3267.1,3267.0,4.95621]
[1765415378210,8.16581772,3267.1,3267.0,0.15301]
[1765415379412,3.8563,3266.9,3266.8,0.00395708]
[1765415379618,4.95801772,3266.9,3266.8,0.00395708]
[1765415379813,2.97881772,3266.9,3266.8,3.73015708]
[1765415380015,4.95801772,3266.9,3266.8,0.00395708]
[1765415380216,1.10171772,3266.9,3266.8,0.00395708]
[1765415380412,4.95801772,3266.9,3266.8,0.00395708]
[1765415380717,2.97881772,3266.9,3266.8,2.03217708]
[1765415380914,2.97881772,3266.9,3266.8,3.88317708]
[1765415381119,1.10171772,3266.9,3266.8,3.88317708]
[1765415382420,3.2078,3267.1,3267.0,4.95621]
[1765415384414,4.30931195,3267.1,3267.0,4.95621]
[1765415386612,4.30064726,3267.1,3267.0,4.95621]
[1765415386823,3.2078,3267.7,3267.6,3.7262]
[1765415387024,5.0849,3267.7,3267.6,2.02818]
[1765415387321,4.80469735,3267.7,3267.6,3.87918]
[1765415387828,3.2078,3267.7,3267.6,3.87918]
[1765415388321,4.80469735,3267.7,3267.6,3.87918]
[1765415388714,3.2078,3267.7,3267.6,3.87918]
[1765415389224,1.59689735,3268.1,3268.0,3.87917]
[1765415389822,6.68179735,3268.2,3268.1,2.02816]
[1765415390215,4.80469735,3268.2,3268.1,3.87916]
[1765415390519,9.19300515,3268.2,3268.1,0.15296]
[1765415392624,3.8563,3267.7,3267.6,12.268]
[1765415392828,7.0641,3267.7,3267.6,12.268]
[1765415393424,9.19300515,3267.7,3267.6,12.268]
[1765415394429,4.9673,3267.0,3266.9,0.15302]
[1765415394728,4.3188,3267.0,3266.9,3.87922]
[1765415395025,4.3188,3267.0,3266.2,12.266]
[1765415395026,1.59787767,3267.1,3267.0,3.87921]
[1765415395626,5.33828313,3267.4,3267.0,3.87921]
[1765415395826,1.59781394,3267.1,3267.0,3.87921]
[1765415396221,3.2078,3267.4,3267.3,3.8792]
[1765415396623,3.2078,3267.4,3267.3,16.1452]
[1765415398726,1.1365,3268.0,3267.9,0.15297]
[1765415398926,5.42992574,3268.0,3267.9,0.15297]
[1765415399421,7.32492574,3268.0,3267.9,0.15297]
[1765415399828,5.42992574,3268.0,3267.9,0.15297]
[1765415401320,9.21032574,3268.0,3267.9,0.15297]
[1765415401628,2.22212574,3268.0,3267.9,3.36077]
[1765415401834,0.9206,3268.5,3268.2,0.15296]
[1765415402127,4.87297746,3268.3,3268.2,0.15296]
[1765415404721,4.9169,3268.0,3267.9,3.2078]
[1765415404924,3.7804,3267.6,3267.5,3.2078]
[1765415405538,3.7804,3267.6,3267.5,3.36079]
[1765415407037,3.7804,3266.9,3266.7,0.15303]
[1765415407636,5.1028,3267.2,3267.1,3.9117]
[1765415408030,1.1365,3267.5,3267.1,3.9117]
[1765415408231,3.7804,3267.4,3267.3,2.0585]
[1765415408431,3.7804,3267.4,3267.3,0.153]
[1765415409240,3.7804,3266.9,3266.6,3.36083]
[1765415409433,3.7804,3266.9,3266.6,0.15303]
[1765415409826,3.7804,3266.9,3266.8,1.90945708]
[1765415410027,3.7804,3266.9,3266.8,0.00395708]
[1765415411439,7.5216,3267.4,3267.3,2.2478]
[1765415411859,7.5216,3267.4,3267.1,0.15301]
[1765415412055,2.1953,3267.2,3267.1,2.40081]
[1765415412254,7.5216,3267.4,3267.3,2.4008]
[1765415412456,3.2078,3267.4,3267.3,4.5487]
[1765415412847,1.1365,3267.5,3267.4,2.40079]
[1765415413050,3.2078,3267.8,3267.7,4.54868]